bitfinex/quotes_ETHUSD_20240718
["timestamp","ask_amount","ask_price","bid_price","bid_amount"]
[1721321440439,2.92646,3417.1,3416.2,2.92716]
[1721321440596,2.92654,3417.0,3416.3,0.08853624]
[1721321441029,2.92668,3416.9,3416.3,0.08853624]
[1721321441344,2.92702,3416.5,3415.6,2.92771]
[1721321441513,5.85375,3416.7,3416.4,0.08847666]
[1721321441707,0.292687,3416.6,3415.8,2.92755]
[1721321441910,0.292687,3416.6,3416.5,0.08841708]
[1721321442135,0.292687,3416.6,3415.6,2.92771]
[1721321442136,2.92698,3416.5,3415.4,8.20362]
[1721321442315,2.92714,3416.3,3415.5,3.0]
[1721321442499,2.92714,3416.3,3415.5,5.92776]
[1721321444198,5.85402,3416.5,3415.5,5.92776]
[1721321444396,0.8537207,3416.4,3415.5,5.92776]
[1721321444631,3.7808007,3416.4,3415.5,5.92776]
[1721321444940,2.92715,3416.3,3415.5,5.92776]
[1721321445246,2.92715,3416.3,3415.5,2.92776]
[1721321445799,2.92739,3416.1,3415.2,2.92803]
[1721321446042,0.67082607,3416.1,3415.3,2.92792]
[1721321446840,3.59814607,3416.1,3415.2,2.92803]
[1721321447046,3.59814607,3416.1,3415.3,2.92799]
[1721321447538,0.67082607,3416.1,3415.4,2.92786]
[1721321448338,0.67082607,3416.1,3415.4,5.85572]
[1721321448525,2.92715,3416.3,3415.4,2.92786]
[1721321448842,2.92715,3416.3,3415.5,2.92782]
[1721321449800,7.5,3417.6,3416.2,2.521]
[1721321450007,2.4056,3417.8,3416.9,2.92659]
[1721321450230,2.4056,3417.8,3417.1,2.9264]
[1721321450231,0.533134,3417.7,3417.1,2.9264]
[1721321450555,2.4056,3417.8,3417.2,3.01436788]
[1721321450762,2.4056,3417.8,3417.2,0.08800788]
[1721321451342,5.33148,3417.8,3417.3,0.08794833]
[1721321451548,2.926,3417.7,3416.7,2.92674]
[1721321451698,3.459148,3417.7,3417.4,0.08788878]
[1721321452024,3.459148,3417.7,3416.7,2.92674]
[1721321452341,3.459148,3417.7,3416.9,2.92662]
[1721321452743,3.459148,3417.7,3417.0,0.08812699]
[1721321452950,0.5864748,3417.6,3417.0,0.08812699]
[1721321453117,0.5864748,3417.6,3417.0,3.01465699]
[1721321456549,0.5864748,3417.6,3417.0,0.08812699]
[1721321456862,0.5864748,3417.6,3416.9,2.92662]
[1721321457147,0.93770628,3417.5,3417.1,0.08806743]
[1721321457338,0.93770628,3417.5,3416.9,2.92662]
[1721321457547,0.93770628,3417.5,3417.2,0.08800788]
[1721321457856,0.93770628,3417.5,3416.9,2.92662]
[1721321458155,0.93770628,3417.5,3417.3,0.08794833]
[1721321458352,0.533148,3417.7,3417.0,2.92653]
[1721321458518,0.533148,3417.7,3417.4,0.08788878]
[1721321458719,0.533148,3417.7,3417.0,2.92653]
[1721321458947,0.533148,3417.7,3417.5,0.08782924]
[1721321459257,0.533148,3417.7,3417.0,2.92653]
[1721321459467,0.5864608,3417.6,3417.0,2.92653]
[1721321459626,0.5864608,3417.6,3417.1,0.08806743]
[1721321459970,0.5864608,3417.6,3417.0,2.92653]
[1721321460327,0.5864608,3417.6,3417.1,0.08806743]
[1721321460629,0.5864608,3417.6,3415.6,2.2969]
[1721321460630,2.9264,3417.2,3415.6,2.2969]
[1721321460851,2.92663,3416.9,3416.1,2.92726]
[1721321461159,2.92651,3417.1,3416.2,3.01570233]
[1721321461334,2.92651,3417.1,3416.2,0.08848233]
[1721321461535,2.92651,3417.1,3416.3,2.92713]
[1721321461744,0.292651,3417.0,3416.3,3.01555275]
[1721321462938,0.292651,3417.0,3416.4,2.92705]
[1721321463249,0.292651,3417.0,3416.4,3.0154316]
[1721321463422,0.292651,3417.0,3416.4,0.0883816]
[1721321465046,5.27795,3417.5,3416.4,0.0883816]
[1721321465250,8.20414,3417.5,3416.4,0.0883816]
[1721321465575,2.92621,3417.4,3416.6,2.92686]
[1721321465922,2.3518,3417.5,3416.7,3.01494638]
[1721321466121,0.89522708,3417.4,3416.7,3.01494638]
[1721321466954,0.5864608,3417.6,3417.0,2.92651]
[1721321467318,0.5864608,3417.6,3417.2,2.92636]
[1721321467864,2.2996,3417.9,3417.3,0.08782127]
[1721321468268,2.2996,3417.9,3417.4,2.92616]
[1721321468580,7.5,3418.2,3417.6,2.92597]
[1721321468859,2.2545,3418.4,3417.7,2.92591]
[1721321469074,2.2545,3418.4,3417.7,3.01334981]
[1721321469233,0.517973,3418.3,3417.7,0.08743981]
[1721321469563,2.92553,3418.2,3417.0,5.85297]
[1721321469731,2.521,3418.6,3417.8,0.08734828]
[1721321469732,6.01372,3418.0,3417.8,0.08734828]
[1721321469938,5.5264,3417.9,3416.6,2.92684]
[1721321470420,2.92614,3417.5,3416.4,2.92698]
[1721321470621,3.820209,3417.4,3416.4,2.92698]
[1721321470851,0.894009,3417.4,3416.6,2.92686]
[1721321471230,0.894009,3417.4,3416.7,2.92679]
[1721321471469,6.01394,3417.7,3416.7,2.92679]
[1721321471880,6.01394,3417.7,3415.8,2.4809]
[1721321471881,2.4384,3417.9,3416.2,5.44819]
[1721321472036,2.4384,3417.9,3417.0,2.92646]
[1721321472879,2.4384,3417.9,3416.8,2.92667]
[1721321473173,0.8364,3417.8,3417.0,2.92647]
[1721321473382,2.4384,3417.9,3417.3,2.92626]
[1721321474982,2.4384,3417.9,3417.1,2.92644]
[1721321475300,5.36422,3417.9,3416.9,2.92657]
[1721321475490,0.24384,3417.8,3416.9,2.92657]
[1721321475790,0.24384,3417.8,3416.2,5.0021]
[1721321475791,2.92595,3417.7,3416.7,2.92673]
[1721321476346,3.16971,3417.8,3416.5,2.92696]
[1721321476347,3.33184,3417.8,3416.5,2.92696]
[1721321476899,3.33184,3417.8,3415.3,10.36799]
[1721321476900,5.5204,3417.5,3416.2,2.92716]
[1721321477104,5.5204,3417.5,3415.7,2.92762]
[1721321477105,2.4324,3416.9,3415.7,2.92762]
[1721321477307,2.4324,3416.9,3415.9,2.92747]
[1721321477464,5.35909,3416.9,3415.9,2.92747]
[1721321477668,3.755298,3416.8,3415.9,2.92747]
[1721321478108,2.92682,3416.7,3415.8,2.92756]
[1721321478408,2.92682,3416.7,3415.5,2.92779]
[1721321478594,0.828568,3416.8,3415.8,2.92751]
[1721321478908,3.755278,3416.8,3415.8,2.92751]
[1721321479113,0.9114248,3416.7,3415.8,2.92751]
[1721321479601,0.9114248,3416.7,3415.9,2.92748]
[1721321479810,2.4324,3416.9,3415.9,2.92741]
[1721321479978,2.4324,3416.9,3416.0,3.01290925]
[1721321479979,5.35903,3416.9,3416.0,3.01290925]
[1721321480171,2.4324,3416.9,3416.2,2.92719]
[1721321480373,2.92641,3417.2,3416.2,2.92715]
[1721321480691,0.885264,3417.1,3416.4,2.927]
[1721321481091,2.4479,3417.3,3416.4,2.927]
[1721321481092,2.4479,3417.3,3416.6,2.92683]
[1721321481476,2.4479,3417.3,3416.7,0.08521603]
[1721321481811,2.4479,3417.3,3416.7,2.92673]
[1721321481969,2.4479,3417.3,3416.8,0.08515646]
[1721321482166,7.5,3417.5,3416.7,2.92673]
[1721321482406,8.8112224,3417.5,3416.9,0.0850969]
[1721321482572,8.8112224,3417.5,3416.8,0.08513723]
[1721321482772,8.8112224,3417.5,3416.6,2.92687]
[1721321483108,8.8112224,3417.5,3416.1,5.0204]
[1721321483109,2.92627,3417.4,3416.1,5.0204]
[1721321483307,2.92627,3417.4,3415.9,2.92747]
[1721321483308,2.353,3416.9,3416.7,0.08518911]
[1721321483519,0.527956,3416.8,3415.9,2.92742]
[1721321483687,0.527956,3416.8,3415.8,2.92754]
[1721321483891,0.527956,3416.8,3416.0,2.92739]
[1721321484088,0.527956,3416.8,3415.9,2.92747]
[1721321484285,0.8734206,3416.7,3415.9,2.92747]
[1721321484578,0.8734206,3416.7,3416.0,2.92737]
[1721321484781,0.527956,3416.8,3416.0,2.92737]
[1721321485715,3.454686,3416.8,3415.8,2.92757]
[1721321485919,3.454686,3416.8,3415.7,2.92757]
[1721321485920,2.9268,3416.7,3415.7,2.92757]
[1721321486205,0.527956,3416.8,3415.6,2.9277]
[1721321486410,2.92702,3416.5,3415.6,2.9277]
[1721321487016,2.92688,3416.6,3415.6,2.92767]
[1721321487249,2.92699,3416.5,3415.6,2.92767]
[1721321488430,2.92686,3416.7,3415.6,2.92765]
[1721321488635,2.92674,3416.8,3415.3,2.521]
[1721321488807,2.92674,3416.8,3415.8,2.92749]
[1721321489150,2.92674,3416.8,3415.9,2.92747]
[1721321490253,2.353,3416.9,3416.0,2.92734]
[1721321492249,5.27964,3416.9,3416.0,2.92734]
[1721321492554,0.820622,3416.8,3415.8,2.9275]
[1721321492753,3.747392,3416.8,3415.7,2.92762]
[1721321493120,2.9269,3416.6,3415.7,2.92762]
[1721321495155,2.9269,3416.6,3415.8,0.0857023]
[1721321495517,2.92698,3416.5,3415.8,0.0857023]
[1721321495713,0.585388,3416.4,3415.4,2.92783]
[1721321496053,0.585388,3416.4,3415.9,0.0856427]
[1721321496241,0.585388,3416.4,3415.5,2.92775]
[1721321496417,0.585388,3416.4,3416.0,0.08558311]
[1721321496617,3.512448,3416.4,3415.5,2.92775]
[1721321496818,0.585388,3416.4,3416.1,0.08552351]
[1721321497032,2.9269,3416.6,3415.6,2.92773]
[1721321497347,3.747372,3416.8,3415.7,2.92765]
[1721321497550,2.92693,3416.6,3415.7,3.5989519]
[1721321497710,3.747372,3416.8,3415.8,2.92751]
[1721321497907,3.747372,3416.8,3415.8,3.0132123]
[1721321498107,6.674162,3416.8,3415.8,3.0132123]
[1721321498322,3.747372,3416.8,3415.8,3.0132123]
[1721321498523,2.9269,3416.6,3415.8,0.0857023]
[1721321498846,0.6674272,3416.5,3415.7,2.92765]
[1721321499054,0.6674272,3416.5,3415.9,0.0856427]
[1721321499279,0.6674272,3416.5,3415.8,3.0132023]
[1721321499574,3.747372,3416.8,3415.9,0.0856427]
[1721321499738,0.820622,3416.8,3416.1,2.92727]
[1721321500279,0.820622,3416.8,3415.9,2.92745]
[1721321500280,2.3201,3417.3,3416.5,2.92689]
[1721321500644,2.3201,3417.3,3416.6,0.08522561]
[1721321500869,2.3201,3417.3,3416.5,2.92689]
[1721321501070,2.3201,3417.3,3416.7,0.08516604]
[1721321501276,0.524622,3417.2,3416.6,0.08522561]
[1721321501459,0.524622,3417.2,3416.5,2.92689]
[1721321501636,0.524622,3417.2,3416.7,0.08516604]
[1721321501840,2.3201,3417.3,3416.5,2.92689]
[1721321501841,2.3201,3417.3,3416.6,0.08522561]
[1721321502043,2.3201,3417.3,3415.9,2.3574]
[1721321502044,5.32897,3417.7,3416.7,2.92671]
[1721321502277,5.32897,3417.7,3416.9,2.92658]
[1721321502278,2.403,3417.7,3416.9,2.92658]
[1721321502579,2.403,3417.7,3417.1,2.92639]
[1721321503073,2.403,3417.7,3417.2,0.08478554]
[1721321503787,2.403,3417.7,3417.3,0.0846712]
[1721321503788,2.9262,3417.4,3417.3,0.0846712]
[1721321504150,2.9262,3417.4,3416.4,2.92705]
[1721321504356,5.85248,3417.4,3417.3,0.08465678]
[1721321504664,2.92637,3417.2,3416.2,2.92717]
[1721321505187,2.9262,3417.4,3416.4,2.92705]
[1721321505342,0.917756,3417.3,3416.4,2.92705]
[1721321505542,0.917756,3417.3,3416.2,2.92716]
[1721321505543,3.844046,3417.3,3416.2,2.92716]
[1721321506048,3.844046,3417.3,3415.9,2.3574]
[1721321506049,0.917756,3417.3,3416.4,2.92705]
[1721321506480,3.844046,3417.3,3416.1,2.92728]
[1721321506893,3.844046,3417.3,3415.9,2.3574]
[1721321506894,0.917756,3417.3,3416.3,2.92708]
[1721321507194,3.844036,3417.3,3416.3,3.219788]
[1721321507400,0.917756,3417.3,3416.4,2.92705]
[1721321507694,0.917756,3417.3,3416.5,2.92696]
[1721321507879,0.917756,3417.3,3416.3,3.219788]
[1721321508092,3.844046,3417.3,3416.4,2.92704]
[1721321508268,2.92637,3417.2,3416.2,2.92716]
[1721321508980,2.92637,3417.2,3416.3,2.92713]
[1721321509375,2.4815,3417.1,3416.3,2.92713]
[1721321509771,2.4815,3417.1,3416.1,2.92728]
[1721321510016,2.92663,3416.9,3416.4,0.08522169]
[1721321510160,2.92663,3416.9,3415.9,2.92742]
[1721321510365,2.92663,3416.9,3416.5,0.08516211]
[1721321510593,0.91256926,3416.8,3416.0,2.92738]
[1721321510863,0.91256926,3416.8,3416.6,0.08510254]
[1721321511174,0.91256926,3416.8,3416.7,0.08504297]
[1721321511394,0.91256926,3416.8,3416.0,2.92738]
[1721321512000,0.91256926,3416.8,3416.1,0.08540044]
[1721321512296,0.44717619,3416.7,3416.1,0.08540044]
[1721321513217,2.4815,3416.6,3416.1,0.08540044]
[1721321513695,2.4815,3416.6,3415.8,2.92755]
[1721321513908,2.4815,3416.6,3416.2,0.08538892]
[1721321514063,2.4815,3416.6,3415.8,2.92755]
[1721321514260,0.58554862,3416.5,3415.9,0.08556769]
[1721321514567,0.58554862,3416.5,3415.6,2.92774]
[1721321514568,3.51257862,3416.5,3415.6,2.92774]
[1721321514768,3.51257862,3416.5,3416.0,0.08279176]
[1721321514987,6.43962862,3416.5,3415.6,2.92774]
[1721321515189,3.51257862,3416.5,3416.1,0.08273217]
[1721321515376,2.9273,3416.2,3415.0,5.009]
[1721321515577,2.9273,3416.2,3415.3,2.92799]
[1721321516076,2.92714,3416.3,3415.4,2.9279]
[1721321516597,2.92723,3416.2,3415.1,2.92813]
[1721321516812,3.97339591,3416.2,3415.3,2.92798]
[1721321517302,0.93683048,3416.4,3415.1,0.793713]
[1721321517611,5.40839,3416.6,3415.7,2.92765]
[1721321518370,2.4815,3416.6,3415.9,2.92748]
[1721321518576,2.4815,3416.6,3415.7,2.9276]
[1721321518786,9.9719,3417.0,3416.2,2.92719]
[1721321520197,9.9719,3417.0,3416.0,2.92733]
[1721321520198,2.92663,3416.9,3416.0,2.92733]
[1721321520422,2.92675,3416.8,3415.9,2.92748]
[1721321520708,9.9719,3417.0,3416.2,2.92721]
[1721321521171,9.9719,3417.0,3415.8,2.92754]
[1721321521172,13.0569,3417.0,3415.8,2.92754]
[1721321521372,2.92682,3416.7,3415.8,2.92754]
[1721321521576,2.92682,3416.7,3415.8,5.85503]
[1721321521800,2.92682,3416.7,3415.9,2.92747]
[1721321521995,4.817861,3416.7,3415.9,2.92747]
[1721321522304,1.891041,3416.7,3415.9,2.92747]
[1721321523011,4.817841,3416.7,3415.9,2.92747]
[1721321523527,1.891041,3416.7,3415.9,2.92747]
[1721321523709,9.9719,3417.0,3416.1,2.92729]
[1721321523885,9.9719,3417.0,3416.3,2.92714]
[1721321524086,2.4719,3417.0,3416.3,2.92714]
[1721321525430,2.92633,3417.3,3416.4,2.92704]
[1721321525595,1.643748,3417.2,3416.4,2.92704]
[1721321525792,2.3819,3417.4,3416.5,0.08245857]
[1721321526024,2.3819,3417.4,3416.6,2.92683]
[1721321526424,2.3819,3417.4,3416.0,5.44836]
[1721321526425,5.30811,3417.4,3416.4,2.92698]
[1721321526745,2.3819,3417.4,3416.6,2.92688]
[1721321526947,4.263802,3417.4,3416.6,2.92688]
[1721321527445,4.263802,3417.4,3416.7,0.08229747]
[1721321528998,7.190002,3417.4,3416.7,0.08229747]
[1721321529415,7.190002,3417.4,3416.6,2.92686]
[1721321529615,7.190002,3417.4,3416.8,0.08223791]
[1721321529829,1.7775002,3417.3,3416.6,2.92686]
[1721321530034,2.3819,3417.4,3416.7,2.92674]
[1721321530354,12.47,3418.0,3416.9,2.521]
[1721321530355,7.5,3417.9,3416.9,2.521]
[1721321530496,7.5,3417.9,3417.5,2.9261]
[1721321530696,2.3906,3418.2,3417.6,2.92599]
[1721321530902,2.3906,3418.2,3417.6,3.00773911]
[1721321531401,2.3906,3418.2,3417.7,2.92591]
[1721321531627,7.5,3418.4,3417.7,3.00759957]
[1721321531838,8.06056394,3418.4,3417.8,2.92582]
[1721321532221,7.5,3418.4,3418.1,2.92552]
[1721321532428,10.54241109,3418.9,3418.2,2.9255]
[1721321532612,3.04241109,3418.9,3418.2,3.00665185]
[1721321532826,0.54519111,3418.8,3418.2,3.00665185]
[1721321533260,0.54519111,3418.8,3418.2,2.9255]
[1721321533751,0.54519111,3418.8,3418.3,0.08105805]
[1721321534119,0.54519111,3418.8,3418.0,2.92565]
[1721321534314,2.2814,3418.7,3417.6,2.92597]
[1721321534513,3.51637911,3418.6,3418.1,0.08113232]
[1721321534750,3.51637911,3418.6,3417.7,2.92589]
[1721321535061,0.59115911,3418.6,3418.2,0.08099377]
[1721321535357,3.51633911,3418.6,3417.8,2.92585]
[1721321536140,0.59115911,3418.6,3417.8,2.92585]
[1721321536347,2.2814,3418.7,3418.0,2.9256]
[1721321537690,2.2814,3418.7,3418.1,2.92559]
[1721321538534,7.5,3419.1,3418.2,2.92551]
[1721321538836,2.92488,3419.0,3418.0,2.9256]
[1721321539179,2.92494,3418.9,3418.0,2.9256]
[1721321539351,1.590684,3418.8,3418.0,2.9256]
[1721321540070,1.590684,3418.8,3418.1,0.08095327]
[1721321540572,1.590684,3418.8,3418.1,3.00649327]
[1721321540935,12.82164,3419.1,3418.1,3.00649327]
[1721321540936,9.8969,3419.1,3418.2,2.9255]
[1721321541135,9.8969,3419.1,3418.4,2.92532]
[1721321541978,2.3969,3419.1,3418.4,2.92532]
[1721321542179,2.3969,3419.1,3418.5,0.08061999]
[1721321542546,2.3969,3419.1,3418.2,2.9255]
[1721321542748,2.3969,3419.1,3418.6,0.08052715]
[1721321542749,1.133117,3419.0,3418.6,0.08052715]
[1721321543097,2.92503,3418.8,3418.7,0.08046765]
[1721321543236,11.21946,3418.8,3418.7,0.08046765]
[1721321543439,11.21946,3418.8,3417.6,2.92595]
[1721321543440,2.92525,3418.6,3417.6,2.92595]
[1721321543780,2.92525,3418.6,3417.7,3.00695281]
[1721321544080,1.121969,3418.5,3417.7,3.00695281]
[1721321544435,1.121969,3418.5,3417.7,5.93282281]
[1721321544690,1.121969,3418.5,3417.8,2.92581]
[1721321544841,2.2844,3418.8,3417.8,2.92581]
[1721321545182,5.2094,3418.8,3417.9,0.08091422]
[1721321546042,2.9251,3418.7,3417.9,0.08091422]
[1721321547298,2.92522,3418.6,3417.9,0.08091422]
[1721321547595,0.813472,3418.5,3417.7,2.92588]
[1721321547801,0.813472,3418.5,3418.0,0.0807766]
[1721321548098,0.813472,3418.5,3417.8,2.92584]
[1721321548301,0.813472,3418.5,3418.1,0.08071707]
[1721321548505,5.20947,3418.8,3417.9,2.92577]
[1721321548663,2.2844,3418.8,3418.2,0.08065756]
[1721321548998,2.92514,3418.7,3417.3,2.521]
[1721321549207,2.92526,3418.5,3417.7,2.92593]
[1721321549357,2.92526,3418.5,3418.3,0.08057044]
[1721321549563,0.58504,3418.4,3417.7,5.85182]
[1721321549807,2.92514,3418.7,3418.4,0.08051093]
[1721321550097,2.92521,3418.6,3417.7,2.92588]
[1721321550538,2.92521,3418.6,3417.8,0.08086805]
[1721321551485,3.085,3418.6,3417.8,0.08086805]
[1721321551663,2.92552,3418.2,3417.8,0.08086805]
[1721321551864,0.292552,3418.1,3417.4,2.92619]
[1721321552061,0.292552,3418.1,3417.9,0.08073995]
[1721321552273,0.292552,3418.1,3417.1,2.92641]
[1721321552464,0.292552,3418.1,3418.0,0.0779733]
[1721321552465,3.218152,3418.1,3418.0,0.0779733]
[1721321552677,0.292552,3418.1,3416.8,2.2529]
[1721321552999,2.92608,3417.6,3416.7,2.92674]
[1721321553208,2.92608,3417.6,3416.9,0.0760437]
[1721321553407,2.92608,3417.6,3416.8,2.92671]
[1721321553906,2.92608,3417.6,3416.9,0.07600233]
[1721321554088,0.540428,3417.5,3416.9,0.07600233]
[1721321554466,0.540428,3417.5,3416.9,3.00261233]
[1721321554709,5.40407,3417.8,3416.9,3.00261233]
[1721321555370,2.92595,3417.7,3416.9,0.07600233]
[1721321555586,5.40406,3417.8,3416.9,3.00258233]
[1721321555902,2.92595,3417.7,3416.9,3.00258233]
[1721321556101,2.92595,3417.7,3416.9,0.07600233]
[1721321556275,0.832996,3417.6,3416.9,0.07600233]
[1721321556461,0.832996,3417.6,3416.7,2.92672]
[1721321556662,3.759076,3417.6,3417.0,0.07591827]
[1721321556863,3.759076,3417.6,3416.7,2.92672]
[1721321557101,2.92621,3417.4,3417.1,0.07585872]
[1721321557306,2.92621,3417.4,3416.3,2.92708]
[1721321557307,3.3022606,3417.3,3416.3,2.92708]
[1721321557462,2.2539,3417.2,3416.3,2.92708]
[1721321557665,2.2539,3417.2,3416.1,2.521]
[1721321557666,2.2539,3417.2,3416.4,3.00330569]
[1721321558108,2.2539,3417.2,3416.5,2.92688]
[1721321558481,2.2539,3417.2,3416.6,0.07615653]
[1721321558994,0.832996,3417.6,3416.8,2.92663]
[1721321559206,2.2539,3417.7,3416.9,2.92661]
[1721321559407,2.2539,3417.7,3416.9,0.07597783]
[1721321559408,5.17985,3417.7,3416.9,0.07597783]
[1721321559782,5.17985,3417.7,3416.8,2.9267]
[1721321560008,5.17985,3417.7,3417.0,0.07591827]
[1721321560189,2.92603,3417.6,3416.6,2.3233]
[1721321560394,0.810587,3417.5,3417.1,0.07585872]
[1721321560595,0.810587,3417.5,3416.7,2.92674]
[1721321561045,0.810587,3417.5,3417.2,0.07579916]
[1721321561197,0.810587,3417.5,3416.7,2.92674]
[1721321561389,0.810587,3417.5,3417.3,0.07573961]
[1721321561727,0.5990517,3417.4,3416.7,2.92674]
[1721321562226,0.5990517,3417.4,3416.8,0.0760374]
[1721321562721,0.5990517,3417.4,3416.8,3.0027374]
[1721321562926,2.2539,3417.7,3416.8,3.0027374]
[1721321563216,5.17984,3417.7,3416.8,3.0027374]
[1721321563404,2.92603,3417.6,3416.8,0.0760374]
[1721321563807,2.92603,3417.6,3416.7,2.92673]
[1721321564008,2.92603,3417.6,3416.8,2.92671]
[1721321564217,3.736617,3417.6,3416.8,3.0027474]
[1721321564725,0.810587,3417.6,3416.8,3.0027474]
[1721321565228,2.92645,3417.2,3416.8,0.0760374]
[1721321565434,3.895587,3417.6,3416.8,0.0760374]
[1721321565435,2.3757,3417.0,3416.8,0.0760374]
[1721321565586,2.3757,3417.0,3416.2,2.92717]
[1721321565785,2.3757,3417.0,3416.3,2.92712]
[1721321566021,2.3757,3417.0,3416.3,0.07633527]
[1721321566205,5.18274,3417.4,3416.5,2.9269]
[1721321566392,1.2004397,3417.3,3416.5,2.9269]
[1721321566591,1.2004397,3417.3,3416.6,0.07615653]
[1721321568121,1.2004397,3417.3,3416.6,3.00303653]
[1721321568440,2.2565,3417.4,3416.7,2.92679]
[1721321568793,2.2565,3417.4,3416.8,0.0760374]
[1721321569024,5.18271,3417.4,3416.5,2.9269]
[1721321569294,2.2565,3417.4,3416.6,3.00298653]
[1721321569826,2.2565,3417.4,3416.8,2.92666]
[1721321569984,10.4257,3418.0,3417.0,2.92652]
[1721321570184,2.92595,3417.7,3416.8,2.92665]
[1721321570425,2.92595,3417.7,3416.9,2.92662]
[1721321570625,2.92595,3417.7,3416.9,3.0026269]
[1721321570924,2.92605,3417.6,3416.9,0.0760069]
[1721321571329,2.2908,3417.3,3416.5,2.92694]
[1721321571487,2.2908,3417.3,3417.0,0.07594734]
[1721321571691,2.2908,3417.3,3416.7,2.92678]
[1721321572330,2.2908,3417.3,3416.8,0.07606646]
[1721321572828,5.21685,3417.6,3416.7,2.92675]
[1721321573017,6.497708,3417.6,3416.8,0.07615736]
[1721321573645,9.423808,3417.6,3416.8,0.07615736]
[1721321573858,3.571658,3417.6,3416.8,0.07615736]
[1721321574156,2.92625,3417.4,3416.5,2.92689]
[1721321574324,2.92625,3417.4,3416.9,0.0760978]
[1721321574510,0.6497908,3417.3,3416.5,2.92689]
[1721321574707,3.5760908,3417.3,3417.0,0.07604668]
[1721321574936,3.5760908,3417.3,3416.5,2.92689]
[1721321575611,3.5760908,3417.3,3416.6,0.07628494]
[1721321575812,0.6497908,3417.3,3416.6,0.07628494]
[1721321576343,5.8523,3417.5,3416.6,0.07628494]
[1721321576543,5.21682,3417.6,3416.6,0.07628494]
[1721321576748,5.21682,3417.6,3417.0,2.92649]
[1721321576749,2.2908,3417.6,3417.0,2.92649]
[1721321577113,2.2908,3417.6,3417.1,0.07598712]
[1721321578854,2.2908,3417.6,3416.9,2.92656]
[1721321579010,2.2908,3417.6,3417.0,3.00137124]
[1721321579761,10.42576,3418.0,3417.1,2.92639]
[1721321580264,10.42576,3418.0,3417.2,0.07474214]
[1721321580408,2.92578,3417.9,3417.2,0.07474214]
[1721321580648,2.3278,3418.1,3417.1,2.92645]
[1721321580814,1.583836,3418.0,3417.1,2.92645]
[1721321581023,1.583836,3418.0,3417.2,0.07474214]
[1721321581412,2.92589,3417.8,3416.6,2.92681]
[1721321581617,2.92609,3417.6,3416.7,3.00175993]
[1721321581812,2.92609,3417.6,3416.7,0.07503993]
[1721321582016,2.4212,3417.4,3416.7,0.07503993]
[1721321582648,2.4212,3417.4,3416.8,2.92666]
[1721321582853,0.292609,3417.5,3416.9,0.0749208]
[1721321583153,5.34706,3417.8,3416.9,0.0749208]
[1721321583358,8.27299,3417.8,3416.9,0.0749208]
[1721321583514,1.2941826,3417.7,3416.8,2.92664]
[1721321585161,4.2201426,3417.7,3416.9,2.92657]
[1721321585461,2.92603,3417.6,3417.0,0.07486124]
[1721321585773,2.92603,3417.6,3416.8,2.9267]
[1721321585972,0.95672726,3417.5,3417.1,0.07480169]
[1721321586171,0.95672726,3417.5,3416.8,2.9267]
[1721321586329,0.95672726,3417.5,3417.2,0.07474214]
[1721321586526,0.95672726,3417.5,3416.8,2.9267]
[1721321586727,0.95672726,3417.5,3417.3,0.07468259]
[1721321586939,0.95672726,3417.5,3416.9,2.92661]
[1721321587286,1.2941826,3417.7,3416.9,2.92661]
[1721321587482,1.2941826,3417.7,3417.0,3.00138124]
[1721321587644,2.4212,3417.8,3417.0,0.07486124]
[1721321587839,2.4212,3417.8,3417.2,2.92636]
[1721321588162,2.4212,3417.8,3417.3,0.07468259]
[1721321588482,2.4212,3417.8,3417.0,2.92647]
[1721321588660,2.4212,3417.8,3417.1,0.07480169]
[1721321588979,1.593201,3417.7,3416.9,2.9266]
[1721321589184,4.519141,3417.7,3417.2,0.07474214]
[1721321589477,4.519141,3417.7,3416.9,2.9266]
[1721321589681,4.519141,3417.7,3417.0,0.07486124]
[1721321589844,2.3566,3417.5,3417.0,0.07486124]
[1721321590185,0.9960851,3417.4,3416.9,2.92662]
[1721321590335,1.593201,3417.7,3416.9,2.92662]
[1721321590539,1.593201,3417.7,3417.0,0.07487251]
[1721321590939,4.519221,3417.7,3417.0,0.07487251]
[1721321591142,1.593201,3417.7,3417.0,0.07487251]
[1721321591342,1.593201,3417.7,3416.6,2.2931]
[1721321591559,2.92586,3417.8,3417.1,0.07481295]
[1721321591757,2.92586,3417.8,3417.0,2.92648]
[1721321591970,2.92586,3417.8,3417.2,0.0747534]
[1721321592170,2.92586,3417.8,3417.1,0.07481295]
[1721321592377,7.5,3417.9,3417.3,0.07469385]
[1721321592587,15.92037,3418.3,3417.2,3.0011134]
[1721321592773,2.839037,3418.2,3417.2,2.92636]
[1721321592974,2.4099,3418.3,3417.4,2.92613]
[1721321593165,2.4099,3418.3,3417.4,5.85226]
[1721321593353,2.4099,3418.3,3417.5,0.07450246]
[1721321594490,2.4099,3418.3,3417.5,3.00060246]
[1721321596581,2.4099,3418.3,3417.5,3.00055246]
[1721321596786,2.92534,3418.4,3417.6,2.92601]
[1721321597149,2.92534,3418.4,3417.7,0.0741981]
[1721321597976,5.41998,3418.6,3417.7,3.0001281]
[1721321598183,7.5,3418.7,3418.0,2.92563]
[1721321598349,2.4551,3419.0,3418.1,2.92551]
[1721321598350,5.37993,3419.0,3418.1,2.92551]
[1721321598554,5.37993,3419.0,3418.1,2.99938459]
[1721321598860,2.534993,3418.9,3418.2,2.92549]
[1721321599076,2.534993,3418.9,3418.3,0.07375369]
[1721321601415,7.5,3419.1,3418.3,0.07375369]
[1721321601626,7.5,3419.1,3418.5,2.92519]
[1721321601973,7.5,3419.1,3418.6,0.07344853]
[1721321603377,7.5,3419.1,3418.4,2.92533]
[1721321603577,7.5,3419.1,3418.7,0.0733557]
[1721321603887,1.283517,3419.0,3418.8,0.0732962]
[1721321604088,1.283517,3419.0,3418.4,2.92533]